[Event "Titled Tuesday Blitz August 08 Late 2023"]
[White "Cheng, Xiao"]
[Black "Lalanne, Pablo"]
[WhiteFideId "2022915"]
[BlackFideId "112151"]
[WhiteElo "2476"]
[BlackElo "2319"]
[Result "1-0"]
[Round "4"]
[TimeControl "180+1"]
[Date "2023.08.08"]
[WhiteClock "0:00:39"]
[BlackClock "0:00:00"]
[Board "136"]

1. e4 {[%clk 0:02:53]}  e5 {[%clk 0:02:59]} 2. Nf3 {[%clk 0:02:52]}  Nc6 {[%clk 0:02:58]} 3. Bc4 {[%clk 0:02:51]}  Bc5 {[%clk 0:02:57]} 4. O-O {[%clk 0:02:48]}  Nf6 {[%clk 0:02:56]} 5. Re1 {[%clk 0:02:48]}  O-O {[%clk 0:02:55]} 6. c3 {[%clk 0:02:48]}  d6 {[%clk 0:02:52]} 7. d4 {[%clk 0:02:48]}  Bb6 {[%clk 0:02:52]} 8. h3 {[%clk 0:02:48]}  h6 {[%clk 0:02:51]} 9. Bb3 {[%clk 0:02:37]}  Re8 {[%clk 0:02:42]} 10. dxe5 {[%clk 0:02:35]}  dxe5 {[%clk 0:02:37]} 11. Qe2 {[%clk 0:02:33]}  Be6 {[%clk 0:02:26]} 12. Nbd2 {[%clk 0:02:31]}  Nh5 {[%clk 0:02:14]} 13. Nf1 {[%clk 0:02:31]}  Nf4 {[%clk 0:02:00]} 14. Bxf4 {[%clk 0:02:30]}  exf4 {[%clk 0:02:01]} 15. Rad1 {[%clk 0:02:27]}  Qf6 {[%clk 0:01:56]} 16. e5 {[%clk 0:02:26]}  Qe7 {[%clk 0:01:48]} 17. Qe4 {[%clk 0:02:23]}  Bxb3 {[%clk 0:01:45]} 18. axb3 {[%clk 0:02:22]}  Qc5 {[%clk 0:01:40]} 19. Qxf4 {[%clk 0:02:15]}  Qxf2+ {[%clk 0:01:39]} 20. Kh2 {[%clk 0:02:13]}  Rad8 {[%clk 0:01:18]} 21. Rxd8 {[%clk 0:01:57]}  Nxd8 {[%clk 0:01:01]} 22. Qd2 {[%clk 0:01:51]}  Ne6 {[%clk 0:00:53]} 23. Qxf2 {[%clk 0:01:48]}  Bxf2 {[%clk 0:00:54]} 24. Re2 {[%clk 0:01:49]}  Bb6 {[%clk 0:00:52]} 25. Rd2 {[%clk 0:01:49]}  Kf8 {[%clk 0:00:36]} 26. Ng3 {[%clk 0:01:45]}  g6 {[%clk 0:00:36]} 27. Ne4 {[%clk 0:01:43]}  Ke7 {[%clk 0:00:33]} 28. Nf6 {[%clk 0:01:41]}  Rd8 {[%clk 0:00:32]} 29. Kg3 {[%clk 0:01:27]}  Rxd2 {[%clk 0:00:30]} 30. Nxd2 {[%clk 0:01:27]}  Nc5 {[%clk 0:00:29]} 31. Kf3 {[%clk 0:01:23]}  Nd3 {[%clk 0:00:29]} 32. Nc4 {[%clk 0:01:23]}  Nxe5+ {[%clk 0:00:21]} 33. Nxe5 {[%clk 0:01:16]}  Kxf6 {[%clk 0:00:22]} 34. Ke4 {[%clk 0:01:16]}  Ke6 {[%clk 0:00:22]} 35. Nd3 {[%clk 0:01:10]}  f5+ {[%clk 0:00:22]} 36. Kf3 {[%clk 0:01:10]}  g5 {[%clk 0:00:19]} 37. g4 {[%clk 0:01:08]}  c6 {[%clk 0:00:18]} 38. Nc1 {[%clk 0:00:55]}  Bc5 {[%clk 0:00:14]} 39. Ne2 {[%clk 0:00:55]}  Ke5 {[%clk 0:00:13]} 40. Ng3 {[%clk 0:00:55]}  fxg4+ {[%clk 0:00:11]} 41. Kxg4 {[%clk 0:00:51]}  Be3 {[%clk 0:00:08]} 42. b4 {[%clk 0:00:44]}  b5 {[%clk 0:00:06]} 43. Kf3 {[%clk 0:00:39]}  Bc1 {[%clk 0:00:06]} 44. b3 {[%clk 0:00:39]}  Bb2 {[%clk 0:00:00]} 45. Ne4 {[%clk 0:00:39]} 1-0


[Site "https://www.chess.com"]

[Event "Titled Tuesday Blitz August 08 Late 2023"]
[White "Sala, Giulia"]
[Black "Garrido Outon, Alex"]
[WhiteFideId "2840451"]
[BlackFideId "24516279"]
[WhiteElo "2321"]
[BlackElo "2470"]
[Result "0-1"]
[Round "4"]
[TimeControl "180+1"]
[Date "2023.08.08"]
[WhiteClock "0:00:24"]
[BlackClock "0:00:23"]
[Board "137"]

1. f4 {[%clk 0:03:00]}  d5 {[%clk 0:02:54]} 2. Nf3 {[%clk 0:02:59]}  g6 {[%clk 0:02:54]} 3. b3 {[%clk 0:02:58]}  Bg7 {[%clk 0:02:54]} 4. Nc3 {[%clk 0:02:58]}  d4 {[%clk 0:02:51]} 5. Ne4 {[%clk 0:02:57]}  Nh6 {[%clk 0:02:52]} 6. Bb2 {[%clk 0:02:55]}  O-O {[%clk 0:02:51]} 7. g3 {[%clk 0:02:51]}  b6 {[%clk 0:02:51]} 8. Bg2 {[%clk 0:02:51]}  Bb7 {[%clk 0:02:52]} 9. Nf2 {[%clk 0:02:48]}  c5 {[%clk 0:02:52]} 10. O-O {[%clk 0:02:47]}  Nd7 {[%clk 0:02:51]} 11. Kh1 {[%clk 0:02:44]}  Qc7 {[%clk 0:02:50]} 12. e4 {[%clk 0:02:43]}  dxe3 {[%clk 0:02:33]} 13. Bxg7 {[%clk 0:02:41]}  Kxg7 {[%clk 0:02:31]} 14. dxe3 {[%clk 0:02:42]}  e5 {[%clk 0:02:30]} 15. Qc1 {[%clk 0:02:40]}  Rfe8 {[%clk 0:02:27]} 16. Qb2 {[%clk 0:02:40]}  Nf5 {[%clk 0:02:24]} 17. Rfe1 {[%clk 0:02:27]}  Rad8 {[%clk 0:02:23]} 18. Nd3 {[%clk 0:02:24]}  Bxf3 {[%clk 0:02:09]} 19. Bxf3 {[%clk 0:02:25]}  Kg8 {[%clk 0:02:09]} 20. Bg2 {[%clk 0:02:11]}  h5 {[%clk 0:02:03]} 21. Rad1 {[%clk 0:02:06]}  exf4 {[%clk 0:02:03]} 22. exf4 {[%clk 0:02:04]}  h4 {[%clk 0:02:03]} 23. Be4 {[%clk 0:01:36]}  Nd6 {[%clk 0:01:38]} 24. Bf3 {[%clk 0:01:25]}  hxg3 {[%clk 0:01:38]} 25. hxg3 {[%clk 0:01:24]}  Nf5 {[%clk 0:01:39]} 26. Kg2 {[%clk 0:01:20]}  Ne3+ {[%clk 0:01:32]} 27. Rxe3 {[%clk 0:01:20]}  Rxe3 {[%clk 0:01:33]} 28. Rh1 {[%clk 0:01:20]}  f6 {[%clk 0:01:34]} 29. Bd5+ {[%clk 0:01:19]}  Kg7 {[%clk 0:01:33]} 30. Qc1 {[%clk 0:01:14]}  Re2+ {[%clk 0:01:30]} 31. Kf3 {[%clk 0:01:13]}  Rde8 {[%clk 0:01:21]} 32. f5 {[%clk 0:01:01]}  R8e3+ {[%clk 0:01:03]} 33. Qxe3 {[%clk 0:01:01]}  Rxe3+ {[%clk 0:01:04]} 34. Kxe3 {[%clk 0:01:02]}  Qxg3+ {[%clk 0:01:04]} 35. Kd2 {[%clk 0:00:59]}  Ne5 {[%clk 0:00:57]} 36. fxg6 {[%clk 0:00:55]}  Nxd3 {[%clk 0:00:50]} 37. cxd3 {[%clk 0:00:55]}  Qf2+ {[%clk 0:00:46]} 38. Kc1 {[%clk 0:00:47]}  Kxg6 {[%clk 0:00:42]} 39. b4 {[%clk 0:00:37]}  cxb4 {[%clk 0:00:40]} 40. Rh8 {[%clk 0:00:35]}  Qc5+ {[%clk 0:00:38]} 41. Bc4 {[%clk 0:00:32]}  b5 {[%clk 0:00:38]} 42. Rg8+ {[%clk 0:00:31]}  Kh7 {[%clk 0:00:38]} 43. Rg4 {[%clk 0:00:28]}  bxc4 {[%clk 0:00:38]} 44. Rxc4 {[%clk 0:00:29]}  Qe3+ {[%clk 0:00:37]} 45. Kc2 {[%clk 0:00:29]}  a5 {[%clk 0:00:36]} 46. Re4 {[%clk 0:00:27]}  Qf2+ {[%clk 0:00:34]} 47. Kb3 {[%clk 0:00:27]}  Qd2 {[%clk 0:00:33]} 48. Rh4+ {[%clk 0:00:23]}  Kg6 {[%clk 0:00:33]} 49. d4 {[%clk 0:00:23]}  Qc3+ {[%clk 0:00:24]} 50. Ka4 {[%clk 0:00:23]}  Qa3+ {[%clk 0:00:24]} 51. Kb5 {[%clk 0:00:23]}  Qxa2 {[%clk 0:00:25]} 52. d5 {[%clk 0:00:22]}  Qxd5+ {[%clk 0:00:24]} 53. Ka4 {[%clk 0:00:22]}  Qa2+ {[%clk 0:00:21]} 54. Kb5 {[%clk 0:00:22]}  b3 {[%clk 0:00:22]} 55. Kc4 {[%clk 0:00:20]}  b2+ {[%clk 0:00:22]} 56. Kc3 {[%clk 0:00:20]}  Qa3+ {[%clk 0:00:18]} 57. Kc2 {[%clk 0:00:19]}  b1=Q+ {[%clk 0:00:18]} 58. Kxb1 {[%clk 0:00:19]}  Qb4+ {[%clk 0:00:18]} 59. Rxb4 {[%clk 0:00:18]}  axb4 {[%clk 0:00:19]} 60. Ka2 {[%clk 0:00:18]}  f5 {[%clk 0:00:19]} 61. Kb3 {[%clk 0:00:19]}  f4 {[%clk 0:00:20]} 62. Kxb4 {[%clk 0:00:20]}  f3 {[%clk 0:00:20]} 63. Kc3 {[%clk 0:00:21]}  f2 {[%clk 0:00:20]} 64. Kd2 {[%clk 0:00:21]}  f1=Q {[%clk 0:00:20]} 65. Ke3 {[%clk 0:00:22]}  Kf5 {[%clk 0:00:20]} 66. Kd4 {[%clk 0:00:23]}  Qf3 {[%clk 0:00:20]} 67. Kc5 {[%clk 0:00:23]}  Qd3 {[%clk 0:00:20]} 68. Kb6 {[%clk 0:00:24]}  Qc4 {[%clk 0:00:20]} 69. Kb7 {[%clk 0:00:23]}  Qc5 {[%clk 0:00:19]} 70. Ka6 {[%clk 0:00:23]}  Qb4 {[%clk 0:00:19]} 71. Ka7 {[%clk 0:00:24]}  Qb5 {[%clk 0:00:20]} 72. Ka8 {[%clk 0:00:24]}  Ke6 {[%clk 0:00:21]} 73. Ka7 {[%clk 0:00:23]}  Kd7 {[%clk 0:00:22]} 74. Ka8 {[%clk 0:00:24]}  Kc7 {[%clk 0:00:22]} 75. Ka7 {[%clk 0:00:24]}  Qb7# {[%clk 0:00:23]} 0-1


[Site "https://www.chess.com"]

[Event "Titled Tuesday Blitz August 08 Late 2023"]
[White "Lima, Kleyton Alcantara"]
[Black "Lopez Idarraga, Daniel Eduardo"]
[WhiteFideId "22718397"]
[BlackFideId "4405501"]
[WhiteElo "2466"]
[BlackElo "2316"]
[Result "0-1"]
[Round "4"]
[TimeControl "180+1"]
[Date "2023.08.08"]
[WhiteClock "0:00:47"]
[BlackClock "0:01:47"]
[Board "138"]

1. d4 {[%clk 0:03:00]}  d5 {[%clk 0:02:59]} 2. c4 {[%clk 0:03:01]}  dxc4 {[%clk 0:03:00]} 3. Nf3 {[%clk 0:03:01]}  Nf6 {[%clk 0:03:01]} 4. e3 {[%clk 0:03:01]}  e6 {[%clk 0:03:02]} 5. Bxc4 {[%clk 0:03:01]}  a6 {[%clk 0:03:03]} 6. a4 {[%clk 0:03:01]}  c5 {[%clk 0:03:01]} 7. O-O {[%clk 0:03:00]}  Nc6 {[%clk 0:03:01]} 8. dxc5 {[%clk 0:02:59]}  Bxc5 {[%clk 0:03:00]} 9. Qxd8+ {[%clk 0:02:57]}  Kxd8 {[%clk 0:03:00]} 10. b3 {[%clk 0:02:50]}  b6 {[%clk 0:02:59]} 11. Bb2 {[%clk 0:02:50]}  Bb7 {[%clk 0:02:59]} 12. Nc3 {[%clk 0:02:50]}  Ke7 {[%clk 0:02:55]} 13. Ne2 {[%clk 0:02:46]}  Rhd8 {[%clk 0:02:54]} 14. Rac1 {[%clk 0:02:42]}  Rac8 {[%clk 0:02:53]} 15. Ned4 {[%clk 0:02:40]}  Nxd4 {[%clk 0:02:49]} 16. Nxd4 {[%clk 0:02:40]}  Nd5 {[%clk 0:02:46]} 17. Rfd1 {[%clk 0:02:31]}  g6 {[%clk 0:02:36]} 18. Kf1 {[%clk 0:02:30]}  e5 {[%clk 0:02:34]} 19. Ne2 {[%clk 0:02:22]}  f6 {[%clk 0:02:34]} 20. Ng3 {[%clk 0:02:21]}  Nb4 {[%clk 0:02:26]} 21. e4 {[%clk 0:02:08]}  Nc6 {[%clk 0:02:22]} 22. Ne2 {[%clk 0:02:04]}  Na5 {[%clk 0:02:16]} 23. Nc3 {[%clk 0:01:52]}  Nxc4 {[%clk 0:02:13]} 24. bxc4 {[%clk 0:01:53]}  Bd4 {[%clk 0:02:09]} 25. f3 {[%clk 0:01:45]}  Rxc4 {[%clk 0:02:07]} 26. Ba3+ {[%clk 0:01:35]}  Ke6 {[%clk 0:02:05]} 27. Ne2 {[%clk 0:01:33]}  Rxa4 {[%clk 0:02:00]} 28. Nxd4+ {[%clk 0:01:22]}  Rdxd4 {[%clk 0:02:01]} 29. Bb2 {[%clk 0:01:18]}  Rxd1+ {[%clk 0:01:58]} 30. Rxd1 {[%clk 0:01:19]}  Ra2 {[%clk 0:01:58]} 31. Bc3 {[%clk 0:01:17]}  a5 {[%clk 0:01:56]} 32. Rb1 {[%clk 0:01:16]}  Ba6+ {[%clk 0:01:55]} 33. Kg1 {[%clk 0:01:16]}  b5 {[%clk 0:01:54]} 34. h4 {[%clk 0:01:02]}  b4 {[%clk 0:01:54]} 35. Be1 {[%clk 0:01:02]}  Bd3 {[%clk 0:01:53]} 36. Rd1 {[%clk 0:01:00]}  Bc2 {[%clk 0:01:49]} 37. Rd5 {[%clk 0:00:57]}  b3 {[%clk 0:01:47]} 38. Rb5 {[%clk 0:00:54]}  b2 {[%clk 0:01:47]} 39. Rb6+ {[%clk 0:00:51]}  Kd7 {[%clk 0:01:47]} 40. Rb7+ {[%clk 0:00:47]}  Kc6 {[%clk 0:01:47]} 0-1


[Site "https://www.chess.com"]

[Event "Titled Tuesday Blitz August 08 Late 2023"]
[White "UgarteCesar"]
[Black "Arnold, Ken"]
[BlackFideId "2056836"]
[WhiteElo "2311"]
[BlackElo "2465"]
[Result "1-0"]
[Round "4"]
[TimeControl "180+1"]
[Date "2023.08.08"]
[WhiteClock "0:00:36"]
[BlackClock "0:00:00"]
[Board "139"]

1. d4 {[%clk 0:03:00]}  d5 {[%clk 0:02:59]} 2. Bf4 {[%clk 0:03:01]}  e6 {[%clk 0:02:59]} 3. e3 {[%clk 0:03:00]}  Nf6 {[%clk 0:02:59]} 4. Nf3 {[%clk 0:03:00]}  Bd6 {[%clk 0:02:59]} 5. Bg3 {[%clk 0:03:01]}  h6 {[%clk 0:02:58]} 6. Bd3 {[%clk 0:03:01]}  a6 {[%clk 0:02:58]} 7. a4 {[%clk 0:03:01]}  b6 {[%clk 0:02:56]} 8. Nbd2 {[%clk 0:03:01]}  Bb7 {[%clk 0:02:56]} 9. Qe2 {[%clk 0:03:01]}  Nbd7 {[%clk 0:02:56]} 10. Ne5 {[%clk 0:03:01]}  Qe7 {[%clk 0:02:49]} 11. c3 {[%clk 0:03:01]}  c5 {[%clk 0:02:47]} 12. f4 {[%clk 0:03:00]}  c4 {[%clk 0:02:45]} 13. Bc2 {[%clk 0:03:00]}  b5 {[%clk 0:02:43]} 14. axb5 {[%clk 0:03:00]}  axb5 {[%clk 0:02:43]} 15. Rxa8+ {[%clk 0:03:00]}  Bxa8 {[%clk 0:02:43]} 16. O-O {[%clk 0:03:01]}  O-O {[%clk 0:02:42]} 17. Bh4 {[%clk 0:02:56]}  Qe8 {[%clk 0:02:31]} 18. g4 {[%clk 0:02:52]}  Ne4 {[%clk 0:02:28]} 19. Nxe4 {[%clk 0:02:32]}  dxe4 {[%clk 0:02:27]} 20. Qg2 {[%clk 0:02:32]}  f5 {[%clk 0:01:29]} 21. g5 {[%clk 0:02:24]}  hxg5 {[%clk 0:01:07]} 22. Bxg5 {[%clk 0:02:20]}  Nxe5 {[%clk 0:01:06]} 23. dxe5 {[%clk 0:02:17]}  Bc5 {[%clk 0:00:53]} 24. Qg3 {[%clk 0:02:11]}  Qg6 {[%clk 0:00:44]} 25. Ra1 {[%clk 0:02:04]}  Bd5 {[%clk 0:00:43]} 26. Bd1 {[%clk 0:02:00]}  Ra8 {[%clk 0:00:36]} 27. Rxa8+ {[%clk 0:01:56]}  Bxa8 {[%clk 0:00:35]} 28. h4 {[%clk 0:01:57]}  Qe8 {[%clk 0:00:30]} 29. Bf6 {[%clk 0:01:52]}  Bf8 {[%clk 0:00:26]} 30. h5 {[%clk 0:01:45]}  Kh7 {[%clk 0:00:26]} 31. Bh4 {[%clk 0:01:38]}  Bd5 {[%clk 0:00:25]} 32. Qg5 {[%clk 0:01:34]}  b4 {[%clk 0:00:22]} 33. Kf2 {[%clk 0:01:09]}  bxc3 {[%clk 0:00:21]} 34. bxc3 {[%clk 0:01:10]}  Bc6 {[%clk 0:00:16]} 35. Be2 {[%clk 0:01:05]}  Bb5 {[%clk 0:00:14]} 36. Kg3 {[%clk 0:01:04]}  Qf7 {[%clk 0:00:14]} 37. Qd8 {[%clk 0:01:03]}  Bc5 {[%clk 0:00:09]} 38. Kf2 {[%clk 0:00:57]}  Be8 {[%clk 0:00:07]} 39. Bg5 {[%clk 0:00:55]}  Qd7 {[%clk 0:00:05]} 40. Qxd7 {[%clk 0:00:53]}  Bxd7 {[%clk 0:00:05]} 41. Bxc4 {[%clk 0:00:53]}  Ba3 {[%clk 0:00:05]} 42. Ke2 {[%clk 0:00:51]}  Bb2 {[%clk 0:00:04]} 43. Kd2 {[%clk 0:00:51]}  Be8 {[%clk 0:00:03]} 44. Bxe6 {[%clk 0:00:50]}  g6 {[%clk 0:00:02]} 45. hxg6+ {[%clk 0:00:50]}  Kxg6 {[%clk 0:00:03]} 46. Be7 {[%clk 0:00:49]}  Bc6 {[%clk 0:00:02]} 47. Bc5 {[%clk 0:00:42]}  Ba4 {[%clk 0:00:01]} 48. Bd4 {[%clk 0:00:42]}  Ba3 {[%clk 0:00:01]} 49. c4 {[%clk 0:00:36]}  Bb4+ {[%clk 0:00:01]} 50. Bc3 {[%clk 0:00:37]}  Bc5 {[%clk 0:00:00]} 51. Bd5 {[%clk 0:00:36]} 1-0


[Site "https://www.chess.com"]

[Event "Titled Tuesday Blitz August 08 Late 2023"]
[White "Garakov, Mikhael"]
[Black "rionelG"]
[WhiteFideId "4169034"]
[WhiteElo "2465"]
[BlackElo "2309"]
[Result "1-0"]
[Round "4"]
[TimeControl "180+1"]
[Date "2023.08.08"]
[WhiteClock "0:01:36"]
[BlackClock "0:00:14"]
[Board "140"]

1. e4 {[%clk 0:03:00]}  c5 {[%clk 0:02:55]} 2. Nf3 {[%clk 0:03:01]}  d6 {[%clk 0:02:55]} 3. d4 {[%clk 0:03:01]}  cxd4 {[%clk 0:02:56]} 4. Nxd4 {[%clk 0:03:01]}  Nf6 {[%clk 0:02:56]} 5. Nc3 {[%clk 0:03:01]}  a6 {[%clk 0:02:57]} 6. f4 {[%clk 0:03:01]}  g6 {[%clk 0:02:55]} 7. Be2 {[%clk 0:02:57]}  Bg7 {[%clk 0:02:55]} 8. g4 {[%clk 0:02:57]}  Nfd7 {[%clk 0:02:48]} 9. Be3 {[%clk 0:02:52]}  Nc6 {[%clk 0:02:48]} 10. Nb3 {[%clk 0:02:49]}  b5 {[%clk 0:02:45]} 11. a3 {[%clk 0:02:44]}  Bb7 {[%clk 0:02:45]} 12. Bf3 {[%clk 0:02:35]}  Rc8 {[%clk 0:02:43]} 13. g5 {[%clk 0:02:32]}  h6 {[%clk 0:02:37]} 14. gxh6 {[%clk 0:02:30]}  Bxh6 {[%clk 0:02:37]} 15. Qd2 {[%clk 0:02:30]}  Nb6 {[%clk 0:02:18]} 16. Nd5 {[%clk 0:02:14]}  Nc4 {[%clk 0:02:14]} 17. Qc3 {[%clk 0:02:14]}  O-O {[%clk 0:02:02]} 18. Bc1 {[%clk 0:01:57]}  Bg7 {[%clk 0:01:49]} 19. Qd3 {[%clk 0:01:53]}  Nxb2 {[%clk 0:01:42]} 20. Bxb2 {[%clk 0:01:53]}  Bxb2 {[%clk 0:01:43]} 21. Rb1 {[%clk 0:01:53]}  Bg7 {[%clk 0:01:38]} 22. O-O {[%clk 0:01:53]}  e6 {[%clk 0:01:29]} 23. Ne3 {[%clk 0:01:53]}  Qb6 {[%clk 0:01:24]} 24. Kh1 {[%clk 0:01:52]}  Nd4 {[%clk 0:01:23]} 25. Bg2 {[%clk 0:01:50]}  Nxb3 {[%clk 0:01:12]} 26. Rxb3 {[%clk 0:01:50]}  Rc7 {[%clk 0:00:57]} 27. f5 {[%clk 0:01:50]}  Rfc8 {[%clk 0:00:55]} 28. f6 {[%clk 0:01:50]}  Bh6 {[%clk 0:00:38]} 29. Ng4 {[%clk 0:01:49]}  Bg5 {[%clk 0:00:39]} 30. Qh3 {[%clk 0:01:35]}  Rxc2 {[%clk 0:00:18]} 31. Nh6+ {[%clk 0:01:35]}  Kf8 {[%clk 0:00:18]} 32. Nxf7 {[%clk 0:01:35]}  Kxf7 {[%clk 0:00:19]} 33. Qh7+ {[%clk 0:01:35]}  Kf8 {[%clk 0:00:13]} 34. Qg7+ {[%clk 0:01:35]}  Ke8 {[%clk 0:00:14]} 35. Qe7# {[%clk 0:01:36]} 1-0


[Site "https://www.chess.com"]

[Event "Titled Tuesday Blitz August 08 Late 2023"]
[White "Zeman, Matyas"]
[Black "Cooper, Aaron"]
[WhiteFideId "364398"]
[BlackFideId "2634945"]
[WhiteElo "2463"]
[BlackElo "2301"]
[Result "1-0"]
[Round "4"]
[TimeControl "180+1"]
[Date "2023.08.08"]
[WhiteClock "0:00:18"]
[BlackClock "0:00:04"]
[Board "141"]

1. e4 {[%clk 0:02:29]}  d5 {[%clk 0:02:59]} 2. exd5 {[%clk 0:02:29]}  Qxd5 {[%clk 0:02:59]} 3. Nc3 {[%clk 0:02:29]}  Qd6 {[%clk 0:03:00]} 4. Bc4 {[%clk 0:02:29]}  Nf6 {[%clk 0:03:00]} 5. d3 {[%clk 0:02:28]}  a6 {[%clk 0:03:00]} 6. Nge2 {[%clk 0:02:28]}  b5 {[%clk 0:03:00]} 7. Bb3 {[%clk 0:02:28]}  e6 {[%clk 0:02:57]} 8. Bf4 {[%clk 0:02:28]}  Qb6 {[%clk 0:02:51]} 9. Ng3 {[%clk 0:02:27]}  Be7 {[%clk 0:02:42]} 10. Qe2 {[%clk 0:02:22]}  O-O {[%clk 0:02:39]} 11. O-O {[%clk 0:02:22]}  Nc6 {[%clk 0:02:38]} 12. a3 {[%clk 0:02:09]}  Nd4 {[%clk 0:02:37]} 13. Qd2 {[%clk 0:01:52]}  Nxb3 {[%clk 0:02:36]} 14. cxb3 {[%clk 0:01:53]}  Bb7 {[%clk 0:02:34]} 15. b4 {[%clk 0:01:52]}  c5 {[%clk 0:02:29]} 16. Be3 {[%clk 0:01:51]}  Rfd8 {[%clk 0:02:27]} 17. Rac1 {[%clk 0:01:44]}  Qc6 {[%clk 0:02:25]} 18. Nce4 {[%clk 0:01:37]}  c4 {[%clk 0:02:08]} 19. Rfd1 {[%clk 0:01:27]}  Rxd3 {[%clk 0:02:06]} 20. Qxd3 {[%clk 0:01:22]}  cxd3 {[%clk 0:02:02]} 21. Rxc6 {[%clk 0:01:23]}  Bxc6 {[%clk 0:02:01]} 22. Nxf6+ {[%clk 0:01:21]}  Bxf6 {[%clk 0:02:02]} 23. Rxd3 {[%clk 0:01:20]}  Bxb2 {[%clk 0:02:00]} 24. Ne2 {[%clk 0:01:08]}  Bd5 {[%clk 0:01:53]} 25. Bd4 {[%clk 0:00:57]}  Bxd4 {[%clk 0:01:30]} 26. Rxd4 {[%clk 0:00:55]}  Rc8 {[%clk 0:01:31]} 27. f3 {[%clk 0:00:52]}  Rc2 {[%clk 0:01:30]} 28. Nf4 {[%clk 0:00:52]}  Rc4 {[%clk 0:01:07]} 29. Rxc4 {[%clk 0:00:46]}  Bxc4 {[%clk 0:01:08]} 30. h4 {[%clk 0:00:44]}  f6 {[%clk 0:01:08]} 31. Kf2 {[%clk 0:00:43]}  e5 {[%clk 0:01:08]} 32. Nh3 {[%clk 0:00:39]}  Kf7 {[%clk 0:01:08]} 33. Ke3 {[%clk 0:00:39]}  Ke6 {[%clk 0:01:08]} 34. Nf2 {[%clk 0:00:38]}  f5 {[%clk 0:01:06]} 35. f4 {[%clk 0:00:38]}  e4 {[%clk 0:01:04]} 36. Kd4 {[%clk 0:00:37]}  Bf1 {[%clk 0:01:01]} 37. g3 {[%clk 0:00:37]}  Kd6 {[%clk 0:01:00]} 38. Nd1 {[%clk 0:00:37]}  g6 {[%clk 0:00:55]} 39. Ne3 {[%clk 0:00:36]}  Be2 {[%clk 0:00:55]} 40. Nd5 {[%clk 0:00:36]}  Bf3 {[%clk 0:00:47]} 41. Nf6 {[%clk 0:00:31]}  Bh5 {[%clk 0:00:31]} 42. Nxh7 {[%clk 0:00:28]}  Bd1 {[%clk 0:00:22]} 43. Nf6 {[%clk 0:00:23]}  Bc2 {[%clk 0:00:21]} 44. Nd5 {[%clk 0:00:23]}  Bb3 {[%clk 0:00:20]} 45. Ne3 {[%clk 0:00:21]}  Bf7 {[%clk 0:00:18]} 46. h5 {[%clk 0:00:20]}  Ke6 {[%clk 0:00:14]} 47. h6 {[%clk 0:00:19]}  Kf6 {[%clk 0:00:11]} 48. g4 {[%clk 0:00:17]}  fxg4 {[%clk 0:00:10]} 49. Nxg4+ {[%clk 0:00:18]}  Kf5 {[%clk 0:00:04]} 50. h7 {[%clk 0:00:18]} 1-0


[Site "https://www.chess.com"]

[Event "Titled Tuesday Blitz August 08 Late 2023"]
[White "Rodriguez Santiago, Jaime"]
[Black "KrokerGuy"]
[WhiteFideId "3100898"]
[WhiteElo "2296"]
[BlackElo "2460"]
[Result "0-1"]
[Round "4"]
[TimeControl "180+1"]
[Date "2023.08.08"]
[WhiteClock "0:00:00"]
[BlackClock "0:00:05"]
[Board "142"]

1. d4 {[%clk 0:03:00]}  d5 {[%clk 0:02:59]} 2. c4 {[%clk 0:03:00]}  e6 {[%clk 0:03:00]} 3. Nc3 {[%clk 0:03:00]}  Nf6 {[%clk 0:03:00]} 4. cxd5 {[%clk 0:03:00]}  exd5 {[%clk 0:03:01]} 5. Bg5 {[%clk 0:03:00]}  Bb4 {[%clk 0:03:02]} 6. e3 {[%clk 0:02:59]}  h6 {[%clk 0:03:00]} 7. Bh4 {[%clk 0:02:59]}  g5 {[%clk 0:03:00]} 8. Bg3 {[%clk 0:02:58]}  Ne4 {[%clk 0:03:01]} 9. Ne2 {[%clk 0:02:54]}  h5 {[%clk 0:03:01]} 10. Qa4+ {[%clk 0:02:38]}  Nc6 {[%clk 0:03:00]} 11. f3 {[%clk 0:02:25]}  Bxc3+ {[%clk 0:02:05]} 12. Nxc3 {[%clk 0:02:16]}  Nxg3 {[%clk 0:01:47]} 13. hxg3 {[%clk 0:02:13]}  Qd6 {[%clk 0:01:46]} 14. f4 {[%clk 0:01:49]}  Bg4 {[%clk 0:01:16]} 15. Be2 {[%clk 0:01:32]}  Bxe2 {[%clk 0:01:14]} 16. Nxe2 {[%clk 0:01:24]}  O-O-O {[%clk 0:01:10]} 17. Rc1 {[%clk 0:01:23]}  Qb4+ {[%clk 0:01:00]} 18. Qxb4 {[%clk 0:01:15]}  Nxb4 {[%clk 0:01:01]} 19. Kd2 {[%clk 0:01:15]}  f6 {[%clk 0:00:40]} 20. a3 {[%clk 0:01:12]}  Nc6 {[%clk 0:00:39]} 21. Rc5 {[%clk 0:01:07]}  Ne7 {[%clk 0:00:38]} 22. Rhc1 {[%clk 0:01:05]}  c6 {[%clk 0:00:38]} 23. b4 {[%clk 0:01:04]}  a6 {[%clk 0:00:33]} 24. a4 {[%clk 0:01:02]}  Kd7 {[%clk 0:00:25]} 25. b5 {[%clk 0:00:58]}  axb5 {[%clk 0:00:26]} 26. axb5 {[%clk 0:00:58]}  Ra8 {[%clk 0:00:26]} 27. R1c2 {[%clk 0:00:54]}  Ra3 {[%clk 0:00:19]} 28. Rb2 {[%clk 0:00:44]}  Kc7 {[%clk 0:00:18]} 29. Nc3 {[%clk 0:00:39]}  b6 {[%clk 0:00:11]} 30. bxc6 {[%clk 0:00:38]}  bxc5 {[%clk 0:00:07]} 31. Nb5+ {[%clk 0:00:37]}  Kxc6 {[%clk 0:00:07]} 32. Nxa3 {[%clk 0:00:37]}  cxd4 {[%clk 0:00:08]} 33. exd4 {[%clk 0:00:36]}  Nf5 {[%clk 0:00:05]} 34. fxg5 {[%clk 0:00:28]}  fxg5 {[%clk 0:00:06]} 35. Rc2+ {[%clk 0:00:27]}  Kd7 {[%clk 0:00:06]} 36. Kd3 {[%clk 0:00:24]}  Nxg3 {[%clk 0:00:06]} 37. Nb5 {[%clk 0:00:23]}  Ne4 {[%clk 0:00:04]} 38. Rc7+ {[%clk 0:00:22]}  Ke6 {[%clk 0:00:05]} 39. Rg7 {[%clk 0:00:20]}  Kf6 {[%clk 0:00:05]} 40. Rd7 {[%clk 0:00:19]}  Ke6 {[%clk 0:00:05]} 41. Rg7 {[%clk 0:00:16]}  Rb8 {[%clk 0:00:06]} 42. Nc7+ {[%clk 0:00:14]}  Kd6 {[%clk 0:00:06]} 43. Na6 {[%clk 0:00:10]}  Rb3+ {[%clk 0:00:07]} 44. Kc2 {[%clk 0:00:09]}  Rc3+ {[%clk 0:00:07]} 45. Kb2 {[%clk 0:00:09]}  Rg3 {[%clk 0:00:06]} 46. Rg6+ {[%clk 0:00:07]}  Ke7 {[%clk 0:00:05]} 47. Nc7 {[%clk 0:00:05]}  Rxg2+ {[%clk 0:00:05]} 48. Kb3 {[%clk 0:00:05]}  Nf6 {[%clk 0:00:04]} 49. Rg7+ {[%clk 0:00:02]}  Kf8 {[%clk 0:00:05]} 50. Rg6 {[%clk 0:00:02]}  Kf7 {[%clk 0:00:05]} 51. Rh6 {[%clk 0:00:00]}  Kg7 {[%clk 0:00:05]} 0-1


[Site "https://www.chess.com"]